fUSD/lending_fUSD_20240709
["ID","MTS","AMOUNT","RATE_DAILY","PERIOD"]
[331575116,1720531834155,-150.0,0.00013871,2]
[331575117,1720531834164,-150.0,0.0001388,2]
[331575118,1720531834173,-500.0,0.00013888,2]
[331575119,1720531834184,-200.0,0.00013888,2]
[331575120,1720531834194,-150.0,0.00013893,2]
[331575121,1720531834203,-150.0,0.00013893,2]
[331575122,1720531834213,-150.0,0.00013898,2]
[331575123,1720531834222,-320.2645209,0.00013899,2]
[331575124,1720531834231,-661.0041,0.000139,2]
[331575125,1720531834240,-165.08670922,0.000139,2]
[331575126,1720531834249,-1208.89317834,0.000139,2]
[331575127,1720531834258,-159.77421108,0.000139,2]
[331575128,1720531834267,-400.0,0.000139,5]
[331575129,1720531834276,-1517.95501952,0.000139,2]
[331575130,1720531834285,-5050.7018122,0.000139,2]
[331575131,1720531834294,-150.0,0.00013914,2]
[331575132,1720531834303,-150.0,0.00013923,2]
[331575133,1720531834312,-150.0,0.00013936,2]
[331575134,1720531834321,-150.0,0.00013946,2]
[331575135,1720531834330,-150.0,0.00013953,2]
[331575136,1720531834339,-150.0,0.00013974,2]
[331575137,1720531834349,-150.0,0.00013979,2]
[331575138,1720531834358,-150.0,0.0001398,2]
[331575139,1720531834366,-150.0,0.00013981,2]
[331575140,1720531834375,-150.0,0.00013984,2]
[331575141,1720531834384,-150.0,0.00013988,2]
[331575142,1720531834394,-356.38582122,0.00013989,2]
[331575143,1720531834404,-155.0,0.00013989,2]
[331575144,1720531834414,-800.3990419,0.0001399,2]
[331575145,1720531834423,-800.3990419,0.0001399,2]
[331575146,1720531834432,-800.3990419,0.0001399,2]
[331575147,1720531834441,-800.3990419,0.0001399,2]
[331575148,1720531834450,-800.3990419,0.0001399,2]
[331575149,1720531834459,-392.9389252,0.0001399,2]
[331575150,1720531834468,-392.9389252,0.0001399,2]
[331575151,1720531834478,-392.9389252,0.0001399,2]
[331575152,1720531834487,-392.9389252,0.0001399,2]
[331575153,1720531834496,-392.9389252,0.0001399,2]
[331575154,1720531834506,-150.0,0.00013991,2]
[331575155,1720531834516,-800.3990419,0.00013992,2]
[331575156,1720531834525,-392.9389252,0.00013992,2]
[331575157,1720531834535,-150.0,0.00013995,2]
[331575158,1720531834544,-927.88866478,0.00013999,2]
[331575159,1720531834553,-196796.74367194,0.00013999,2]
[331575160,1720531834571,-3380.00047024,0.00013999,2]
[331575164,1720531838337,-630.37381688,0.00013128,2]
[331575169,1720531838431,-30.32962556,0.00013128,2]
[331575191,1720531838885,-463.26794253,0.000136,2]
[331575275,1720531839754,-345.73205747,0.000136,2]
[331575277,1720531839764,-177.22749519,0.000136,2]
[331575279,1720531839780,-29.67450481,0.000136,2]
[331575281,1720531839790,-494099.52775652,0.00013999,2]
[331575283,1720531839800,-798.0,0.00014,2]
[331575285,1720531839809,-228715.92725307,0.00014,2]
[331575288,1720531839821,-40434.21669472,0.00014,2]
[331575290,1720531839832,-306.24039448,0.00014,2]
[331575361,1720531840557,-364.18212,0.00014,2]
[331575368,1720531840612,-1056.7785687,0.00014,2]
[331575370,1720531840624,-1273.216,0.00014,2]
[331575372,1720531840636,-1655.05436443,0.00014,2]
[331575374,1720531840648,-879.53341354,0.00014,2]
[331575375,1720531840665,-503.88976085,0.00014,2]
[331575693,1720531843668,-2775.68967099,0.00013094,2]
[331575696,1720531843678,-404322.34576197,0.00014,2]
[331575721,1720531843821,-25847.785215,0.00014,2]
[331576033,1720531846811,-297.92202383,0.00013472,2]
[331576035,1720531846824,-1407.92808022,0.00014,2]
[331576224,1720532012932,3556.42720128,0.00011211,2]
[331576227,1720532051726,1302.80620649,0.00011,2]
[331576228,1720532092501,75551.01148155,0.00011,2]
[331576229,1720532119120,1569.43628346,0.00011199,2]
[331576230,1720532128780,1264.73271285,0.00011199,2]
[331576231,1720532152097,789.20648331,0.00011199,2]
[331576232,1720532159413,244.20406391,0.000101,2]
[331576235,1720532170810,517.874,0.00011199,2]
[331576237,1720532189331,750.0,0.00011199,2]
[331576238,1720532195244,717.97789183,0.00011199,2]
[331576239,1720532202893,671.04050753,0.00011199,2]
[331576242,1720532258622,276.15184313,0.00011199,2]
[331576243,1720532267920,280.44086817,0.00011199,2]
[331576244,1720532280100,290.97986156,0.00011199,2]
[331576245,1720532280663,1630.1845532,0.00011199,2]
[331576246,1720532290461,355.67,0.00010933,2]
[331576247,1720532299460,356.38582122,0.00011199,2]
[331576248,1720532321928,266.23744785,0.00011199,2]
[331576250,1720532350567,155.0,0.00011199,2]
[331576255,1720532500116,660.14495176,0.00011199,2]
[331576256,1720532519217,171.63557131,5e-05,2]
[331576257,1720532532663,666.3145004,0.00011199,2]
[331576259,1720532545798,161.28077976,0.00011199,2]
[331576260,1720532548374,1071.49821396,0.00011199,2]
[331576261,1720532576672,500.0,0.00025,60]
[331576263,1720532590455,500.0,0.00025,60]
[331576264,1720532594353,500.0,0.00025,60]
[331576265,1720532595426,500.0,0.00025,60]
[331576266,1720532596448,500.0,0.00025,60]
[331576267,1720532597252,500.0,0.00025,60]
[331576268,1720532598045,500.0,0.00025,60]
[331576269,1720532598800,500.0,0.00025,60]
[331576270,1720532599513,500.0,0.00025,60]
[331576271,1720532600314,500.0,0.00025,60]
[331576272,1720532601256,500.0,0.00025,60]
[331576273,1720532601987,500.0,0.00025,60]
[331576274,1720532602730,500.0,0.00025,60]
[331576275,1720532603466,500.0,0.00025,60]
[331576276,1720532605526,500.0,0.00025,60]
[331576277,1720532605561,500.0,0.00025,60]
[331576278,1720532605770,500.0,0.00025,60]
[331576279,1720532606502,500.0,0.00025,60]
[331576281,1720532607325,500.0,0.00025,60]
[331576282,1720532607471,304.65330378,0.00011199,2]
[331576283,1720532608008,500.0,0.00025,60]
[331576284,1720532608824,500.0,0.00025,60]
[331576285,1720532609514,500.0,0.00025,60]
[331576286,1720532610234,500.0,0.00025,60]
[331576287,1720532611050,500.0,0.00025,60]
[331576288,1720532612928,500.0,0.00025,60]
[331576289,1720532612968,500.0,0.00025,60]
[331576290,1720532613237,500.0,0.00025,60]
[331576291,1720532614450,500.0,0.00025,60]
[331576292,1720532614828,500.0,0.00025,60]
[331576293,1720532616683,500.0,0.00025,60]
[331576294,1720532616749,500.0,0.00025,60]
[331576295,1720532616784,960.3459936,0.00011199,2]
[331576296,1720532617017,500.0,0.00025,60]
[331576297,1720532617894,500.0,0.00025,60]
[331576298,1720532618692,500.0,0.00025,60]
[331576299,1720532619378,500.0,0.00025,60]
[331576300,1720532620157,500.0,0.00025,60]
[331576301,1720532620783,500.0,0.00025,60]
[331576302,1720532623477,20335.16391521,0.00011199,2]
[331576303,1720532628647,1368.57436773,0.00011199,2]
[331576304,1720532628679,368.80500075,0.00011199,2]
[331576305,1720532632822,155.13135445,0.00011199,2]
[331576306,1720532633107,290.66575246,0.00011199,2]
[331576307,1720532649637,348.46797126,0.00011199,2]
[331576308,1720532658641,7557.69022854,0.00011199,2]
[331576311,1720532668146,18795.719944,0.00011199,2]
[331576314,1720532683071,18795.719944,0.00011199,2]
[331576315,1720532687822,500.0,0.00025,60]
[331576316,1720532688745,500.0,0.00025,60]
[331576317,1720532689677,500.0,0.00025,60]
[331576318,1720532690612,500.0,0.00025,60]
[331576319,1720532692198,500.0,0.00025,60]
[331576320,1720532692699,500.0,0.00025,60]
[331576321,1720532693665,500.0,0.00025,60]
[331576322,1720532694551,500.0,0.00025,60]
[331576323,1720532707198,500.0,0.00025,60]
[331576324,1720532708338,500.0,0.00025,60]
[331576325,1720532709301,20335.16391521,0.00011199,2]
[331576326,1720532709345,500.0,0.00025,60]
[331576327,1720532711268,500.0,0.00025,60]
[331576328,1720532711347,500.0,0.00025,60]
[331576329,1720532712152,500.0,0.00025,60]
[331576330,1720532712967,500.0,0.00025,60]
[331576331,1720532713896,500.0,0.00025,60]
[331576332,1720532714949,500.0,0.00025,60]
[331576333,1720532715941,500.0,0.00025,60]
[331576334,1720532717831,500.0,0.00025,60]
[331576335,1720532719758,500.0,0.00025,60]
[331576344,1720532723500,500.0,0.00025,60]
[331576345,1720532725606,290.78194372,0.00011199,2]
[331576346,1720532725637,500.0,0.00025,60]
[331576347,1720532726117,500.0,0.00025,60]
[331576348,1720532726883,500.0,0.00025,60]
[331576349,1720532737182,500.0,0.00025,60]
[331576350,1720532738107,500.0,0.00025,60]
[331576351,1720532738998,500.0,0.00025,60]
[331576352,1720532739893,500.0,0.00025,60]
[331576353,1720532740688,500.0,0.00025,60]
[331576354,1720532740765,290.78194372,0.00011199,2]
[331576355,1720532741380,500.0,0.00025,60]
[331576356,1720532742132,500.0,0.00025,60]
[331576357,1720532742802,500.0,0.00025,60]
[331576358,1720532756521,500.0,0.00025,60]
[331576361,1720532758382,500.0,0.00025,60]
[331576362,1720532758527,500.0,0.00025,60]
[331576363,1720532759265,500.0,0.00025,60]
[331576364,1720532759972,500.0,0.00025,60]
[331576365,1720532760870,500.0,0.00025,60]
[331576366,1720532761718,500.0,0.00025,60]
[331576367,1720532763670,500.0,0.00025,60]
[331576368,1720532764750,500.0,0.00025,60]
[331576369,1720532765821,500.0,0.00025,60]
[331576370,1720532766725,500.0,0.00025,60]
[331576371,1720532771244,4461.53872289,0.00011199,2]
[331576372,1720532782161,2571.19558722,0.00011199,2]
[331576373,1720532787219,500.0,0.00027,120]
[331576374,1720532788470,500.0,0.00027,120]
[331576375,1720532790152,500.0,0.00027,120]
[331576376,1720532791064,500.0,0.00027,120]
[331576377,1720532794503,500.0,0.00027,120]
[331576378,1720532794649,500.0,0.00027,120]
[331576379,1720532794754,500.0,0.00027,120]
[331576381,1720532794862,500.0,0.00027,120]
[331576382,1720532795332,500.0,0.00027,120]
[331576383,1720532795924,500.0,0.00027,120]
[331576384,1720532796762,500.0,0.00027,120]
[331576385,1720532808197,500.0,0.00027,120]
[331576387,1720532809175,500.0,0.00027,120]
[331576388,1720532810050,500.0,0.00027,120]
[331576389,1720532811033,500.0,0.00027,120]
[331576390,1720532811996,500.0,0.00027,120]
[331576391,1720532813024,500.0,0.00027,120]
[331576392,1720532813951,500.0,0.00027,120]
[331576393,1720532814924,500.0,0.00027,120]
[331576394,1720532816790,500.0,0.00027,120]
[331576395,1720532817768,500.0,0.00027,120]
[331576396,1720532818269,358.46,0.00010748,2]
[331576397,1720532819361,500.0,0.00027,120]
[331576398,1720532828317,264.34443455,0.00027,120]
[331576401,1720532845379,1086.4395604,0.00011199,2]
[331576404,1720532872070,754.48160921,0.00011199,2]
[331576408,1720532899700,1351.92849631,0.00011199,2]
[331576409,1720532916194,1195.0,0.00011199,2]
[331576410,1720532922306,14066.727031,0.00011199,2]
[331576411,1720532926963,305.0,0.00011199,2]
[331576412,1720532944968,3454.49320771,0.00011199,2]
[331576425,1720532970965,625.93982727,0.00011199,2]
[331576427,1720532993879,-1222.64909872,0.00011211,2]
[331576428,1720532993914,-300.0,0.00011259,2]
[331576429,1720532993948,-541.37459448,0.0001126,2]
[331576430,1720532993979,-500.0,0.0001126,2]
[331576431,1720532994012,-192.03210497,0.0001126,2]
[331576435,1720533007373,3112.40418631,0.00011199,2]
[331576439,1720533009963,731.67559911,0.00011199,2]
[331576447,1720533023128,2739.31422748,0.00011199,2]
[331576484,1720533031615,-607.96789503,0.0001126,2]
[331576487,1720533031625,-900.0,0.0001126,2]
[331576489,1720533031635,-500.0,0.0001126,2]
[331576491,1720533031645,-1042.70594457,0.000118,2]
[331576492,1720533031655,-300.0,0.00012081,2]
[331576493,1720533031664,-800.0,0.00012082,2]
[331576494,1720533031674,-900.0,0.00012082,2]
[331576495,1720533031684,-304.65330378,0.00012273,2]
[331576496,1720533031695,-155.14654103,0.00012273,2]
[331576497,1720533031704,-12807.41,0.00012289,2]
[331576498,1720533031714,-600.0,0.00012302,2]
[331576499,1720533031724,-173.76628846,0.00012302,2]
[331576500,1720533031733,-155.0,0.00012302,2]
[331576501,1720533031744,-550.32575246,0.00012302,2]
[331576502,1720533031754,-176.04,0.00012474,2]
[331576503,1720533031763,-150.0,0.000126,2]
[331576504,1720533031777,-150.0,0.00012618,2]
[331576505,1720533031787,-150.0,0.00012635,2]
[331576506,1720533031796,-150.0,0.00012653,2]
[331576507,1720533031806,-150.0,0.0001267,2]
[331576508,1720533031815,-150.0,0.00012688,2]
[331576509,1720533031825,-1000.0,0.00012697,2]
[331576510,1720533031835,-150.0,0.00012705,2]
[331576511,1720533031844,-150.0,0.00012723,2]
[331576512,1720533031854,-150.0,0.0001274,2]
[331576513,1720533031864,-150.0,0.00012758,2]
[331576514,1720533031874,-188.42,0.00012761,2]
[331576515,1720533031884,-150.0,0.00012775,2]
[331576516,1720533031893,-150.0,0.00012793,2]
[331576517,1720533031903,-250.0,0.00012795,2]
[331576519,1720533031913,-150.0,0.0001281,2]
[331576520,1720533031923,-150.0,0.00012828,2]
[331576521,1720533031932,-150.0,0.00012845,2]
[331576522,1720533031942,-150.0,0.00012863,2]
[331576523,1720533031951,-150.0,0.0001288,2]
[331576524,1720533031962,-150.0,0.00012898,2]
[331576525,1720533031971,-800.0,0.00012904,2]
[331576526,1720533031981,-900.0,0.00012904,2]
[331576527,1720533031990,-150.0,0.00012915,2]
[331576528,1720533032000,-150.0,0.00012933,2]
[331576529,1720533032009,-150.0,0.0001295,2]
[331576530,1720533032018,-150.0,0.00012968,2]
[331576531,1720533032028,-150.0,0.00012985,2]
[331576532,1720533032038,-150.0,0.00013003,2]
[331576533,1720533032047,-299.99,0.00013004,2]
[331576534,1720533032057,-2747.13,0.00013004,2]
[331576535,1720533032067,-358.46,0.00013012,2]
[331576536,1720533032076,-150.0,0.0001302,2]
[331576537,1720533032085,-150.0,0.00013038,2]
[331576538,1720533032095,-150.0,0.00013055,2]
[331576539,1720533032104,-150.0,0.00013073,2]
[331576540,1720533032114,-150.0,0.0001309,2]
[331576541,1720533032123,-150.0,0.00013108,2]
[331576542,1720533032133,-150.0,0.00013125,2]
[331576543,1720533032142,-150.0,0.00013143,2]
[331576544,1720533032151,-150.0,0.0001316,2]
[331576545,1720533032160,-150.0,0.00013178,2]
[331576546,1720533032170,-150.0,0.00013195,2]
[331576547,1720533032180,-150.0,0.00013213,2]
[331576548,1720533032189,-150.0,0.0001323,2]
[331576549,1720533032200,-150.0,0.00013248,2]
[331576550,1720533032210,-420.0,0.00013261,2]
[331576551,1720533032218,-150.0,0.00013265,2]
[331576552,1720533032232,-150.0,0.00013283,2]
[331576553,1720533032241,-150.0,0.000133,2]
[331576554,1720533032251,-150.0,0.00013318,2]
[331576555,1720533032261,-150.0,0.00013335,2]
[331576556,1720533032270,-150.0,0.00013353,2]
[331576557,1720533032280,-150.0,0.0001337,2]
[331576558,1720533032289,-150.0,0.00013388,2]
[331576560,1720533032299,-150.0,0.00013405,2]
[331576561,1720533032308,-150.0,0.00013423,2]
[331576562,1720533032318,-150.0,0.0001344,2]
[331576563,1720533032327,-150.0,0.00013458,2]
[331576564,1720533032336,-150.0,0.0001347,2]
[331576565,1720533032346,-160.0513,0.00013474,2]
[331576566,1720533032356,-150.0,0.00013475,2]
[331576567,1720533032366,-150.0,0.00013493,2]
[331576568,1720533032375,-150.0,0.0001351,2]
[331576569,1720533032387,-150.0,0.00013528,2]
[331576570,1720533032398,-517.874,0.00013543,2]
[331576571,1720533032408,-483.62526826,0.00013543,2]
[331576572,1720533032418,-150.0,0.00013545,2]
[331576573,1720533032431,-150.0,0.00013563,2]
[331576574,1720533032441,-735.7999741,0.00013574,2]
[331576575,1720533032451,-240.73383763,0.00013574,2]
[331576576,1720533032460,-386.20199698,0.00013574,2]
[331576577,1720533032471,-1097.75931605,0.00013574,2]
[331576578,1720533032480,-450.95794745,0.00013574,2]
[331576579,1720533032490,-2068.1531775,0.00013574,2]
[331576580,1720533032500,-155.0,0.00013574,2]
[331576581,1720533032510,-150.0,0.0001358,2]
[331576582,1720533032519,-150.0,0.00013598,2]
[331576583,1720533032528,-150.0,0.00013615,2]
[331576584,1720533032538,-150.0,0.00013633,2]
[331576585,1720533032548,-150.0,0.0001365,2]
[331576586,1720533032558,-150.0,0.00013668,2]
[331576587,1720533032567,-150.0,0.00013685,2]
[331576588,1720533032576,-250.0,0.00013699,2]
[331576589,1720533032586,-150.0,0.00013703,2]
[331576590,1720533032595,-150.0,0.0001372,2]
[331576591,1720533032605,-800.0,0.00013726,2]
[331576592,1720533032615,-900.0,0.00013726,2]
[331576593,1720533032624,-4632.03500045,0.00013736,2]
[331576594,1720533032635,-1135.23446764,0.00013736,2]
[331576595,1720533032644,-150.0,0.00013738,2]
[331576596,1720533032654,-150.0,0.00013755,2]
[331576597,1720533032663,-150.0,0.00013773,2]
[331576598,1720533032674,-481.9187,0.0001378,2]
[331576599,1720533032685,-1088.00386056,0.0001379,2]
[331576600,1720533032694,-150.0,0.0001379,2]
[331576601,1720533032704,-159.77421102,0.00013799,2]
[331576602,1720533032714,-1328.21064208,0.00013799,2]
[331576603,1720533032724,-679.8807,0.000138,2]
[331576604,1720533032734,-150.0,0.00013808,2]
[331576605,1720533032745,-1328.21064207,0.00013813,2]
[331576606,1720533032755,-150.0,0.00013825,2]
[331576607,1720533032766,-1328.21064207,0.00013828,2]
[331576608,1720533032776,-1328.21064207,0.00013842,2]
[331576609,1720533032785,-150.0,0.00013843,2]
[331576610,1720533032795,-1328.21064207,0.00013857,2]
[331576611,1720533032805,-2284.27212,0.0001386,2]
[331576612,1720533032815,-150.0,0.0001386,2]
[331576613,1720533032824,-1328.21064207,0.00013871,2]
[331576614,1720533032833,-150.0,0.00013878,2]
[331576615,1720533032844,-361.0,0.0001388,2]
[331576616,1720533032855,-1251.0,0.0001388,2]
[331576617,1720533032864,-1659.0,0.0001388,2]
[331576618,1720533032874,-1830.0,0.0001388,2]
[331576619,1720533032883,-444.0,0.0001388,2]
[331576620,1720533032893,-622.653,0.0001388,2]
[331576621,1720533032903,-451.146,0.0001388,2]
[331576622,1720533032913,-809.0,0.0001388,2]
[331576623,1720533032924,-4517.159,0.0001388,2]
[331576624,1720533032933,-562.745,0.0001388,2]
[331576625,1720533032943,-4172.754,0.0001388,2]
[331576626,1720533032953,-232443.88490656,0.0001388,2]
[331576627,1720533032963,-1328.21064207,0.00013886,2]
[331576628,1720533032973,-500.0,0.00013888,2]
[331576629,1720533032983,-200.0,0.00013888,2]
[331576630,1720533032992,-316.01223081,0.00013889,2]
[331576631,1720533033577,-150.0,0.00013895,2]
[331576632,1720533033587,-6950.4756,0.00013899,2]
[331576633,1720533033596,-165.27943084,0.00013899,2]
[331576634,1720533033605,-160.13713916,0.00013899,2]
[331576635,1720533033615,-245000.0,0.000139,2]
[331576636,1720533033625,-171.03600203,0.000139,2]
[331576637,1720533033634,-250000.0,0.000139,2]
[331576638,1720533033643,-1328.21064207,0.000139,2]
[331576639,1720533033653,-150.50133856,0.000139,2]
[331576640,1720533033662,-10101.40362438,0.000139,2]
[331576641,1720533033672,-1978.62405476,0.000139,2]
[331576642,1720533033683,-1088.0038605,0.00013912,2]
[331576643,1720533033692,-150.0,0.00013913,2]
[331576644,1720533033701,-159.77421102,0.00013924,2]
[331576645,1720533033710,-150.0,0.0001393,2]
[331576646,1720533033719,-150.0,0.00013948,2]
[331576647,1720533033728,-150.0,0.00013965,2]
[331576648,1720533033738,-150.0,0.00013983,2]
[331576649,1720533033747,-156.31937905,0.00013989,2]
[331576650,1720533033757,-349.89001083,0.00013989,2]
[331576651,1720533033771,-40772.2967741,0.0001399,2]
[331576652,1720533033781,-4799.81781146,0.0001399,2]
[331576653,1720533033796,-640.98222618,0.0001399,2]
[331576654,1720533033808,-14291.12019,0.0001399,2]
[331576655,1720533033926,-3299.21382241,0.0001399,2]
[331576673,1720533037586,-500.0,0.00012904,2]
[331576675,1720533037595,-714.80253227,0.00013574,2]
[331576678,1720533037694,-858.74623956,0.00013574,2]
[331576679,1720533037706,-285.375,0.00013574,2]
[331576680,1720533037734,-209.22940567,0.00013574,2]
[331576681,1720533037744,-74.71059433,0.00013849,2]
[331576682,1720533037755,-241.30163648,0.00013849,2]
[331576683,1720533037765,-1381.68836352,0.0001399,2]
[331576684,1720533037777,-7097.78388793,0.0001399,2]
[331576685,1720533037786,-497.45651156,0.0001399,2]
[331576686,1720533037797,-1185.34288774,0.0001399,2]
[331576856,1720533039744,-20566.1164295,0.0001399,2]
[331576858,1720533039754,-12987.2253562,0.0001399,2]
[331576860,1720533039764,-3725.5348836,0.0001399,2]
[331576862,1720533039774,-50033.9872467,0.00013992,2]
[331576864,1720533039783,-764.0,0.00013999,2]
[331576866,1720533039793,-154.6481108,0.00013999,2]
[331576868,1720533039803,-43222.82561496,0.00013999,2]
[331576870,1720533039816,-2256.33146258,0.00013999,2]
[331576872,1720533039829,-464.64,0.00013999,2]
[331576875,1720533039841,-1417.66794618,0.00013999,2]
[331576879,1720533039875,-382.60523184,0.00013999,2]
[331576881,1720533039887,-59841.20793247,0.00013999,2]
[331576887,1720533039942,-2550.50257882,0.00013999,2]
[331577024,1720533042814,-275.52978969,0.00013999,2]
[331577025,1720533042825,-500.0,0.00013999,2]
[331577026,1720533042837,-275.452,0.00013999,2]
[331577027,1720533042946,-5958.007393,0.00013999,2]
[331577029,1720533044540,-495.87980047,0.00013999,2]
[331577030,1720533044554,-2829.58704795,0.00013999,2]
[331577031,1720533044565,-5658.86,0.00013999,2]
[331577032,1720533044576,-97841.03793547,0.00013999,2]
[331577033,1720533044599,-758.19771398,0.00013999,2]
[331577034,1720533044613,-570.0,0.00013999,2]
[331577042,1720533045846,-320045.5505197,0.00013999,2]
[331577043,1720533045905,-148932.38893159,0.00013999,2]
[331577044,1720533045915,-63420.54623585,0.00013999,2]
[331577045,1720533045925,-151.0,0.00013999,2]
[331577046,1720533045941,-151.0,0.00013999,2]
[331577047,1720533045950,-151.0,0.00013999,2]
[331577048,1720533045958,-151.0,0.00013999,2]
[331577049,1720533045968,-151.0,0.00013999,2]
[331577050,1720533045977,-151.0,0.00013999,2]
[331577051,1720533045986,-151.0,0.00013999,2]
[331577052,1720533045994,-151.0,0.00013999,2]
[331577053,1720533046003,-151.0,0.00013999,2]
[331577054,1720533046012,-151.0,0.00013999,2]
[331577055,1720533046021,-398.363443,0.00013999,2]
[331577056,1720533046030,-151.0,0.00013999,2]
[331577057,1720533046039,-398.363443,0.00013999,2]
[331577058,1720533046049,-151.0,0.00013999,2]
[331577059,1720533046060,-151.0,0.00013999,2]
[331577060,1720533046069,-151.0,0.00013999,2]
[331577061,1720533046079,-151.552311,0.00013999,2]
[331577062,1720533046090,-151.0,0.00013999,2]
[331577063,1720533046100,-317.444517,0.00013999,2]
[331577064,1720533046110,-563.380381,0.00013999,2]
[331577065,1720533046120,-153.560117,0.00013999,2]
[331577066,1720533046130,-317.444517,0.00013999,2]
[331577067,1720533046139,-152.266567,0.00013999,2]
[331577068,1720533046150,-563.380381,0.00013999,2]
[331577069,1720533046160,-151.0,0.00013999,2]
[331577070,1720533046170,-151.0,0.00013999,2]
[331577071,1720533046180,-152.266567,0.00013999,2]
[331577072,1720533046190,-151.0,0.00013999,2]
[331577073,1720533046199,-151.0,0.00013999,2]
[331577074,1720533046208,-151.148345,0.00013999,2]
[331577075,1720533046218,-151.754547,0.00013999,2]
[331577076,1720533046228,-151.0,0.00013999,2]
[331577077,1720533046237,-151.0,0.00013999,2]
[331577078,1720533046246,-151.0,0.00013999,2]
[331577079,1720533046256,-151.0,0.00013999,2]
[331577080,1720533046265,-151.250471,0.00013999,2]
[331577081,1720533046275,-151.347794,0.00013999,2]
[331577082,1720533046284,-151.651106,0.00013999,2]
[331577083,1720533046293,-151.0,0.00013999,2]
[331577084,1720533046303,-151.0,0.00013999,2]
[331577085,1720533046313,-195.413456,0.00013999,2]
[331577086,1720533046323,-195.413456,0.00013999,2]
[331577087,1720533046332,-151.0,0.00013999,2]
[331577088,1720533046341,-151.0,0.00013999,2]
[331577089,1720533046350,-151.0,0.00013999,2]
[331577091,1720533046359,-151.0,0.00013999,2]
[331577093,1720533046368,-151.0,0.00013999,2]
[331577094,1720533046377,-151.0,0.00013999,2]
[331577095,1720533046387,-392.522113,0.00013999,2]
[331577096,1720533046400,-151.0,0.00013999,2]
[331577098,1720533046409,-392.522113,0.00013999,2]
[331577100,1720533046418,-151.0,0.00013999,2]
[331577101,1720533046427,-151.693364,0.00013999,2]
[331577102,1720533046438,-151.0,0.00013999,2]
[331577103,1720533046448,-3135.505834,0.00013999,2]
[331577104,1720533046457,-3135.505834,0.00013999,2]
[331577105,1720533046466,-151.0,0.00013999,2]
[331577106,1720533046476,-151.0,0.00013999,2]
[331577107,1720533046486,-151.0,0.00013999,2]
[331577108,1720533046496,-151.0,0.00013999,2]
[331577109,1720533046507,-151.0,0.00013999,2]
[331577110,1720533046519,-151.0,0.00013999,2]
[331577111,1720533046530,-151.0,0.00013999,2]
[331577112,1720533046540,-151.0,0.00013999,2]
[331577113,1720533046551,-152.521378,0.00013999,2]
[331577114,1720533046560,-500.0,0.00013999,2]
[331577115,1720533046569,-242.12176787,0.00013999,2]
[331577116,1720533046578,-154.64811079,0.00013999,2]
[331577117,1720533046587,-149696.12692987,0.00014,2]
[331577118,1720533046596,-155.0,0.00014,2]